[Event "Early-Titled-Tuesday-Blitz-October-17-2023"]
[Site "Chess.com"]
[Date "2023.10.17"]
[Round "6"]
[White "YouJustFoundYourGodfather"]
[Black "Grossboss19"]
[Result "1-0"]
[WhiteElo "2621"]
[BlackElo "2484"]
[TimeControl "180+1"]
[EndTime "9:10:39 PDT"]
[Termination "YouJustFoundYourGodfather won on time"]

1. e4 {[%clk 0:03:00.9]} 1... c6 {[%clk 0:02:58.7]} 2. c4 {[%clk 0:02:56.8]}
2... c5 {[%clk 0:02:52]} 3. Nf3 {[%clk 0:02:55.5]} 3... Nc6 {[%clk 0:02:50.1]}
4. Nc3 {[%clk 0:02:55.5]} 4... e5 {[%clk 0:02:48.9]} 5. a3 {[%clk 0:02:50.9]}
5... g6 {[%clk 0:02:40.3]} 6. Rb1 {[%clk 0:02:46.5]} 6... a5 {[%clk 0:02:37.6]}
7. Nd5 {[%clk 0:02:45.2]} 7... Bg7 {[%clk 0:02:32.8]} 8. b4 {[%clk 0:02:41.3]}
8... axb4 {[%clk 0:02:32.7]} 9. axb4 {[%clk 0:02:41.9]} 9... cxb4 {[%clk
0:02:33.2]} 10. d3 {[%clk 0:02:38.5]} 10... Nge7 {[%clk 0:02:03.5]} 11. Be2
{[%clk 0:02:32.6]} 11... O-O {[%clk 0:02:02]} 12. O-O {[%clk 0:02:30.5]} 12...
d6 {[%clk 0:01:55.9]} 13. Be3 {[%clk 0:02:27.2]} 13... Nxd5 {[%clk 0:01:44.1]}
14. cxd5 {[%clk 0:02:26.7]} 14... Ne7 {[%clk 0:01:38.1]} 15. Rxb4 {[%clk
0:02:25.1]} 15... f5 {[%clk 0:01:35.1]} 16. Qb3 {[%clk 0:02:18.8]} 16... f4
{[%clk 0:01:15.3]} 17. Bb6 {[%clk 0:02:17.5]} 17... Qe8 {[%clk 0:01:12.6]} 18.
d4 {[%clk 0:02:08.6]} 18... exd4 {[%clk 0:00:51.6]} 19. Bxd4 {[%clk 0:02:07.3]}
19... g5 {[%clk 0:00:47.1]} 20. Bxg7 {[%clk 0:02:00.2]} 20... Kxg7 {[%clk
0:00:46.3]} 21. Nxg5 {[%clk 0:01:53.9]} 21... Qg6 {[%clk 0:00:45.1]} 22. Ne6+
{[%clk 0:01:46.7]} 22... Bxe6 {[%clk 0:00:41.6]} 23. dxe6 {[%clk 0:01:47.6]}
23... Rab8 {[%clk 0:00:33.4]} 24. Bf3 {[%clk 0:01:35.3]} 24... Rfc8 {[%clk
0:00:24.9]} 25. Rxb7 {[%clk 0:01:33.5]} 25... Rxb7 {[%clk 0:00:22.7]} 26. Qxb7
{[%clk 0:01:34.4]} 26... Qxe6 {[%clk 0:00:20.5]} 27. h3 {[%clk 0:01:33.2]} 27...
Qf6 {[%clk 0:00:15.6]} 28. Rd1 {[%clk 0:01:30]} 28... Rd8 {[%clk 0:00:15.1]} 29.
Qc7 {[%clk 0:01:29.2]} 29... Qf8 {[%clk 0:00:11.4]} 30. Rxd6 {[%clk 0:01:13.7]}
30... Rxd6 {[%clk 0:00:12.3]} 31. Qxd6 {[%clk 0:01:13.7]} 31... Ng6 {[%clk
0:00:12.9]} 32. Qxf8+ {[%clk 0:01:12]} 32... Kxf8 {[%clk 0:00:12.4]} 33. g3
{[%clk 0:01:08.2]} 33... Ne5 {[%clk 0:00:10.6]} 34. Kg2 {[%clk 0:01:08.4]} 34...
fxg3 {[%clk 0:00:09.4]} 35. Kxg3 {[%clk 0:01:08.9]} 35... Kg7 {[%clk 0:00:09.8]}
36. Be2 {[%clk 0:01:09.3]} 36... Kf6 {[%clk 0:00:08.8]} 37. f4 {[%clk
0:01:09.7]} 37... Nc6 {[%clk 0:00:05.8]} 38. Bg4 {[%clk 0:01:08.1]} 38... h6
{[%clk 0:00:05.5]} 39. h4 {[%clk 0:01:08.3]} 39... Ke7 {[%clk 0:00:04.5]} 40. e5
{[%clk 0:01:08.3]} 40... Nd4 {[%clk 0:00:03.9]} 41. f5 {[%clk 0:01:08.2]} 41...
Nc6 {[%clk 0:00:02.9]} 42. Kf4 {[%clk 0:01:06]} 42... Nb4 {[%clk 0:00:01.9]} 43.
f6+ {[%clk 0:01:06]} 43... Kf8 {[%clk 0:00:01.8]} 44. e6 {[%clk 0:01:04.1]}
44... Nc6 {[%clk 0:00:01.4]} 45. e7+ {[%clk 0:01:02.8]} 1-0

[Event "Early-Titled-Tuesday-Blitz-October-17-2023"]
[Site "Chess.com"]
[Date "2023.10.17"]
[Round "6"]
[White "Keeper0416"]
[Black "KatakuriDono"]
[Result "1-0"]
[WhiteElo "2603"]
[BlackElo "2393"]
[TimeControl "180+1"]
[EndTime "9:10:40 PDT"]
[Termination "Keeper0416 won by resignation"]

1. d4 {[%clk 0:03:00.9]} 1... d5 {[%clk 0:02:59.9]} 2. e3 {[%clk 0:02:56.6]}
2... Nf6 {[%clk 0:02:59.1]} 3. Ne2 {[%clk 0:02:57]} 3... g6 {[%clk 0:02:56]} 4.
Nf4 {[%clk 0:02:56.6]} 4... Bg7 {[%clk 0:02:55.3]} 5. h4 {[%clk 0:02:56]} 5...
Nbd7 {[%clk 0:02:49.7]} 6. h5 {[%clk 0:02:54.4]} 6... e5 {[%clk 0:02:49.6]} 7.
h6 {[%clk 0:02:49.2]} 7... Bf8 {[%clk 0:02:46.1]} 8. dxe5 {[%clk 0:02:42.5]}
8... Nxe5 {[%clk 0:02:44.9]} 9. Be2 {[%clk 0:02:40.6]} 9... c6 {[%clk
0:02:39.9]} 10. b3 {[%clk 0:02:40.4]} 10... Bd6 {[%clk 0:02:37.6]} 11. Bb2
{[%clk 0:02:40.4]} 11... Qe7 {[%clk 0:02:36.6]} 12. Nd2 {[%clk 0:02:33]} 12...
a5 {[%clk 0:02:33.6]} 13. a3 {[%clk 0:02:32.4]} 13... a4 {[%clk 0:02:32.1]} 14.
b4 {[%clk 0:02:32.5]} 14... b5 {[%clk 0:02:19.7]} 15. Bd4 {[%clk 0:02:21.4]}
15... Nc4 {[%clk 0:02:15.5]} 16. Nxc4 {[%clk 0:02:18]} 16... bxc4 {[%clk
0:02:15.5]} 17. Qc1 {[%clk 0:02:10.3]} 17... Rg8 {[%clk 0:02:02.6]} 18. Qb2
{[%clk 0:01:26.5]} 18... Ne4 {[%clk 0:02:01.5]} 19. c3 {[%clk 0:00:50.3]} 19...
Bf5 {[%clk 0:01:44.4]} 20. g4 {[%clk 0:00:41.9]} 20... Bd7 {[%clk 0:01:40.9]}
21. Kf1 {[%clk 0:00:31.9]} 21... Rb8 {[%clk 0:01:29.2]} 22. Bf3 {[%clk
0:00:28.2]} 22... c5 {[%clk 0:01:27.1]} 23. Nxd5 {[%clk 0:00:28.3]} 23... Qe6
{[%clk 0:01:18.7]} 24. Bxe4 {[%clk 0:00:28.3]} 24... cxd4 {[%clk 0:01:13.1]} 25.
exd4 {[%clk 0:00:28.3]} 25... Kd8 {[%clk 0:01:05.6]} 26. Re1 {[%clk 0:00:25.6]}
26... Bc6 {[%clk 0:00:49.5]} 27. Qd2 {[%clk 0:00:24.7]} 27... g5 {[%clk
0:00:40.4]} 28. Bf3 {[%clk 0:00:20.3]} 28... Qd7 {[%clk 0:00:32.7]} 29. Nf6
{[%clk 0:00:18.2]} 29... Qb7 {[%clk 0:00:29.5]} 30. Bxc6 {[%clk 0:00:17.2]}
30... Qxc6 {[%clk 0:00:29.5]} 31. d5 {[%clk 0:00:17.5]} 31... Qc8 {[%clk
0:00:26.9]} 32. Nxg8 {[%clk 0:00:17.3]} 32... Qxg4 {[%clk 0:00:26.1]} 33. Qe2
{[%clk 0:00:13.6]} 33... Kc7 {[%clk 0:00:22.1]} 34. Qxg4 {[%clk 0:00:13.2]} 1-0

[Event "Early-Titled-Tuesday-Blitz-October-17-2023"]
[Site "Chess.com"]
[Date "2023.10.17"]
[Round "6"]
[White "Lennis93"]
[Black "seopie"]
[Result "1/2-1/2"]
[WhiteElo "2714"]
[BlackElo "2849"]
[TimeControl "180+1"]
[EndTime "9:10:47 PDT"]
[Termination "Game drawn by repetition"]

1. c4 {[%clk 0:03:00.9]} 1... Nf6 {[%clk 0:02:59.1]} 2. g3 {[%clk 0:03:01.4]}
2... g6 {[%clk 0:02:55.3]} 3. b4 {[%clk 0:03:01.1]} 3... Bg7 {[%clk 0:02:55]} 4.
Bb2 {[%clk 0:03:01.5]} 4... O-O {[%clk 0:02:53.4]} 5. Bg2 {[%clk 0:03:01.8]}
5... d6 {[%clk 0:02:53.8]} 6. Nf3 {[%clk 0:02:59.8]} 6... e5 {[%clk 0:02:52.4]}
7. O-O {[%clk 0:02:59.3]} 7... Qe7 {[%clk 0:02:51.7]} 8. d3 {[%clk 0:02:59.3]}
8... Nbd7 {[%clk 0:02:50.4]} 9. e4 {[%clk 0:02:56]} 9... a5 {[%clk 0:02:48.6]}
10. a3 {[%clk 0:02:54.9]} 10... Re8 {[%clk 0:02:48.4]} 11. Nc3 {[%clk
0:02:54.3]} 11... Nf8 {[%clk 0:02:48.7]} 12. Nd5 {[%clk 0:02:42.2]} 12... Qd8
{[%clk 0:02:48.5]} 13. bxa5 {[%clk 0:02:23.4]} 13... Rxa5 {[%clk 0:02:43.7]} 14.
Bc3 {[%clk 0:02:23.7]} 14... Ra8 {[%clk 0:02:43.7]} 15. Qb3 {[%clk 0:02:22.6]}
15... Ne6 {[%clk 0:02:42]} 16. a4 {[%clk 0:02:22.1]} 16... c6 {[%clk 0:02:39.5]}
17. Nb6 {[%clk 0:02:14.2]} 17... Nc5 {[%clk 0:02:38.4]} 18. Qb1 {[%clk
0:02:14.2]} 18... Ra6 {[%clk 0:02:38.4]} 19. a5 {[%clk 0:02:14.2]} 19... Bg4
{[%clk 0:02:36.4]} 20. h3 {[%clk 0:01:57.8]} 20... Bxf3 {[%clk 0:02:36.2]} 21.
Bxf3 {[%clk 0:01:58.7]} 21... Qc7 {[%clk 0:02:36.4]} 22. Be2 {[%clk 0:01:56.7]}
22... Nfd7 {[%clk 0:02:34.1]} 23. Nxd7 {[%clk 0:01:52.5]} 23... Qxd7 {[%clk
0:02:34.2]} 24. Kg2 {[%clk 0:01:33.7]} 24... Rea8 {[%clk 0:02:19]} 25. Ra2
{[%clk 0:01:31.5]} 25... Qe7 {[%clk 0:02:16.5]} 26. Rb2 {[%clk 0:01:28.9]} 26...
R6a7 {[%clk 0:02:12.7]} 27. Bd2 {[%clk 0:01:25.9]} 27... Bf6 {[%clk 0:02:00.2]}
28. Qc2 {[%clk 0:01:12.5]} 28... Ne6 {[%clk 0:01:58.3]} 29. Rfb1 {[%clk
0:01:08.7]} 29... Nd4 {[%clk 0:01:51.3]} 30. Qd1 {[%clk 0:01:08.5]} 30... Qd7
{[%clk 0:01:47.6]} 31. Bg4 {[%clk 0:01:06.8]} 31... Qc7 {[%clk 0:01:46]} 32. Bc3
{[%clk 0:01:06.9]} 32... Bd8 {[%clk 0:01:40.9]} 33. h4 {[%clk 0:01:06.3]} 33...
Qe7 {[%clk 0:01:40.7]} 34. h5 {[%clk 0:01:06.2]} 34... Bxa5 {[%clk 0:01:38.5]}
35. Bxa5 {[%clk 0:01:01.3]} 35... Rxa5 {[%clk 0:01:39.4]} 36. Rxb7 {[%clk
0:01:01.4]} 36... Qg5 {[%clk 0:01:38.4]} 37. hxg6 {[%clk 0:00:30.1]} 37... hxg6
{[%clk 0:01:37.2]} 38. Qh1 {[%clk 0:00:30.1]} 38... Rf8 {[%clk 0:01:20.5]} 39.
Rxf7 {[%clk 0:00:17.2]} 39... Rxf7 {[%clk 0:01:08.8]} 40. Rb8+ {[%clk
0:00:16.6]} 40... Rf8 {[%clk 0:01:09.1]} 41. Rxf8+ {[%clk 0:00:16.7]} 41... Kxf8
{[%clk 0:01:10]} 42. Qh8+ {[%clk 0:00:16.5]} 42... Kf7 {[%clk 0:01:10.4]} 43.
Qh7+ {[%clk 0:00:15.2]} 43... Ke8 {[%clk 0:00:57.2]} 44. Qg8+ {[%clk 0:00:13]}
44... Ke7 {[%clk 0:00:57.5]} 45. Qg7+ {[%clk 0:00:11.7]} 45... Ke8 {[%clk
0:00:57.8]} 46. Qg8+ {[%clk 0:00:11.1]} 46... Ke7 {[%clk 0:00:58.1]} 47. Qg7+
{[%clk 0:00:10.5]} 47... Ke8 {[%clk 0:00:58.4]} 48. Qg8+ {[%clk 0:00:04.7]}
1/2-1/2

[Event "Early-Titled-Tuesday-Blitz-October-17-2023"]
[Site "Chess.com"]
[Date "2023.10.17"]
[Round "6"]
[White "DanielTitichoca"]
[Black "Ranindu2003"]
[Result "0-1"]
[WhiteElo "2571"]
[BlackElo "2782"]
[TimeControl "180+1"]
[EndTime "9:10:48 PDT"]
[Termination "Ranindu2003 won by resignation"]

1. e4 {[%clk 0:02:55.8]} 1... c5 {[%clk 0:02:59]} 2. Nc3 {[%clk 0:02:54.9]} 2...
a6 {[%clk 0:02:58.4]} 3. Nf3 {[%clk 0:02:51.2]} 3... b5 {[%clk 0:02:50.7]} 4. d4
{[%clk 0:02:50.7]} 4... cxd4 {[%clk 0:02:51.6]} 5. Nxd4 {[%clk 0:02:51]} 5... e6
{[%clk 0:02:52.3]} 6. g3 {[%clk 0:02:51.4]} 6... Bb7 {[%clk 0:02:49.7]} 7. Bg2
{[%clk 0:02:51.9]} 7... Nf6 {[%clk 0:02:49.2]} 8. O-O {[%clk 0:02:52.5]} 8...
Qc7 {[%clk 0:02:43.1]} 9. Re1 {[%clk 0:02:52.7]} 9... d6 {[%clk 0:02:38.6]} 10.
a4 {[%clk 0:02:31.5]} 10... b4 {[%clk 0:02:36.3]} 11. Nd5 {[%clk 0:02:32.1]}
11... exd5 {[%clk 0:02:27]} 12. exd5+ {[%clk 0:02:32.2]} 12... Kd8 {[%clk
0:02:27.6]} 13. Bg5 {[%clk 0:02:28.5]} 13... Nd7 {[%clk 0:02:21.6]} 14. c3
{[%clk 0:02:25.8]} 14... bxc3 {[%clk 0:02:07.1]} 15. Rc1 {[%clk 0:02:25.2]}
15... h6 {[%clk 0:01:52.4]} 16. Rxc3 {[%clk 0:02:21.9]} 16... Qb6 {[%clk
0:01:22.7]} 17. Nc6+ {[%clk 0:02:11.2]} 17... Bxc6 {[%clk 0:01:19]} 18. dxc6
{[%clk 0:02:11.4]} 18... hxg5 {[%clk 0:01:19.3]} 19. c7+ {[%clk 0:02:07.5]}
19... Kc8 {[%clk 0:01:19.6]} 20. Bxa8 {[%clk 0:02:07.4]} 20... Nc5 {[%clk
0:01:16.1]} 21. Qd4 {[%clk 0:01:35.5]} 21... Qxb2 {[%clk 0:00:58.1]} 22. Qc4
{[%clk 0:00:54.1]} 22... Nfd7 {[%clk 0:00:50.4]} 23. Rc2 {[%clk 0:00:41.8]}
23... Qb6 {[%clk 0:00:44.4]} 24. Qxf7 {[%clk 0:00:24.2]} 24... Kxc7 {[%clk
0:00:37.3]} 25. Re8 {[%clk 0:00:24.3]} 25... Qb1+ {[%clk 0:00:35.8]} 26. Kg2
{[%clk 0:00:24]} 26... Qxc2 {[%clk 0:00:36.2]} 27. Qd5 {[%clk 0:00:23.9]} 27...
Qxa4 {[%clk 0:00:29.9]} 28. Qxg5 {[%clk 0:00:15.1]} 28... Nf6 {[%clk 0:00:24.2]}
29. Rxf8 {[%clk 0:00:12.3]} 29... Rxf8 {[%clk 0:00:23.7]} 30. Qxg7+ {[%clk
0:00:12.8]} 30... Ncd7 {[%clk 0:00:22.2]} 31. Bf3 {[%clk 0:00:10.2]} 31... Qb3
{[%clk 0:00:21.3]} 32. Qe7 {[%clk 0:00:09.2]} 32... Qxf3+ {[%clk 0:00:20.6]} 33.
Kxf3 {[%clk 0:00:07.5]} 33... Nd5+ {[%clk 0:00:21.3]} 0-1

[Event "Early-Titled-Tuesday-Blitz-October-17-2023"]
[Site "Chess.com"]
[Date "2023.10.17"]
[Round "6"]
[White "Susal_De_Silva"]
[Black "Sanyura"]
[Result "1-0"]
[WhiteElo "2671"]
[BlackElo "2537"]
[TimeControl "180+1"]
[EndTime "9:10:48 PDT"]
[Termination "Susal_De_Silva won on time"]

1. Nf3 {[%clk 0:03:00.9]} 1... d5 {[%clk 0:02:57.2]} 2. e3 {[%clk 0:02:59.1]}
2... c6 {[%clk 0:02:58.1]} 3. c4 {[%clk 0:02:58.8]} 3... e6 {[%clk 0:02:57.9]}
4. Nc3 {[%clk 0:02:57.4]} 4... Nf6 {[%clk 0:02:58.4]} 5. b3 {[%clk 0:02:57.5]}
5... Be7 {[%clk 0:02:58.3]} 6. Bb2 {[%clk 0:02:57.9]} 6... O-O {[%clk
0:02:59.2]} 7. Qc2 {[%clk 0:02:58.6]} 7... Nbd7 {[%clk 0:02:58.4]} 8. Be2 {[%clk
0:02:57.4]} 8... e5 {[%clk 0:02:55.5]} 9. cxd5 {[%clk 0:02:53.3]} 9... cxd5
{[%clk 0:02:56.4]} 10. Nb5 {[%clk 0:02:53.6]} 10... e4 {[%clk 0:02:54.7]} 11.
Nfd4 {[%clk 0:02:52.1]} 11... Ne5 {[%clk 0:02:53.4]} 12. f4 {[%clk 0:02:44.4]}
12... exf3 {[%clk 0:02:52.3]} 13. gxf3 {[%clk 0:02:45]} 13... a6 {[%clk
0:02:51.8]} 14. f4 {[%clk 0:02:44.5]} 14... Ng6 {[%clk 0:02:44.1]} 15. Nc3
{[%clk 0:02:40.7]} 15... Bd7 {[%clk 0:02:40.8]} 16. h4 {[%clk 0:02:37.2]} 16...
Ne4 {[%clk 0:02:34.3]} 17. Nxe4 {[%clk 0:02:34.3]} 17... dxe4 {[%clk 0:02:30.4]}
18. h5 {[%clk 0:02:33.5]} 18... Bh4+ {[%clk 0:02:25.8]} 19. Kf1 {[%clk
0:02:32.4]} 19... Nh8 {[%clk 0:02:03.3]} 20. Qxe4 {[%clk 0:02:29.7]} 20... Re8
{[%clk 0:01:58.8]} 21. Qg2 {[%clk 0:02:25.3]} 21... Bf6 {[%clk 0:01:53]} 22. h6
{[%clk 0:02:22.8]} 22... g6 {[%clk 0:01:39.9]} 23. Bc4 {[%clk 0:02:21.2]} 23...
Rc8 {[%clk 0:01:36.6]} 24. Bd5 {[%clk 0:02:19.8]} 24... Bc6 {[%clk 0:01:29.8]}
25. Bxc6 {[%clk 0:02:15.9]} 25... bxc6 {[%clk 0:01:28.2]} 26. Bc3 {[%clk
0:01:48.6]} 26... c5 {[%clk 0:01:23.9]} 27. Ne2 {[%clk 0:01:48.8]} 27... c4
{[%clk 0:01:15]} 28. b4 {[%clk 0:01:46.9]} 28... Bxc3 {[%clk 0:01:03.8]} 29.
Nxc3 {[%clk 0:01:45.8]} 29... Rc7 {[%clk 0:00:59.9]} 30. Rh5 {[%clk 0:01:32.9]}
30... Qd3+ {[%clk 0:00:54.4]} 31. Kg1 {[%clk 0:01:30.7]} 31... Rd7 {[%clk
0:00:49.5]} 32. Rd5 {[%clk 0:01:30.8]} 32... Rxd5 {[%clk 0:00:47.7]} 33. Qxd5
{[%clk 0:01:29.5]} 33... Qc2 {[%clk 0:00:39.4]} 34. Rf1 {[%clk 0:01:22.5]} 34...
g5 {[%clk 0:00:09]} 35. fxg5 {[%clk 0:01:20.4]} 35... Qg6 {[%clk 0:00:08.1]} 36.
Rf6 {[%clk 0:01:19.4]} 36... Qh5 {[%clk 0:00:07.5]} 37. Qf5 {[%clk 0:01:06.9]}
37... Ng6 {[%clk 0:00:05.3]} 38. Rxf7 {[%clk 0:01:05.3]} 38... Rf8 {[%clk
0:00:02.4]} 39. Rxf8+ {[%clk 0:01:00.4]} 39... Nxf8 {[%clk 0:00:03.3]} 40. Ne4
{[%clk 0:00:58.9]} 40... Qd1+ {[%clk 0:00:01.5]} 41. Kg2 {[%clk 0:00:59.5]}
41... Qe2+ {[%clk 0:00:02]} 42. Kg3 {[%clk 0:00:57.5]} 42... Qe1+ {[%clk
0:00:01.8]} 43. Kf4 {[%clk 0:00:57.9]} 1-0

[Event "Early-Titled-Tuesday-Blitz-October-17-2023"]
[Site "Chess.com"]
[Date "2023.10.17"]
[Round "6"]
[White "victormago"]
[Black "CraiggoryC"]
[Result "1-0"]
[WhiteElo "2481"]
[BlackElo "2208"]
[TimeControl "180+1"]
[EndTime "9:10:50 PDT"]
[Termination "victormago won on time"]

1. d4 {[%clk 0:02:59.3]} 1... e6 {[%clk 0:02:59]} 2. c4 {[%clk 0:02:59.2]} 2...
Nf6 {[%clk 0:02:58.6]} 3. Nc3 {[%clk 0:02:59.5]} 3... d5 {[%clk 0:02:59.1]} 4.
cxd5 {[%clk 0:02:58.9]} 4... exd5 {[%clk 0:03:00]} 5. Bg5 {[%clk 0:02:58.4]}
5... c6 {[%clk 0:03:00]} 6. Qc2 {[%clk 0:02:58.3]} 6... Be7 {[%clk 0:03:00.4]}
7. e3 {[%clk 0:02:57.8]} 7... O-O {[%clk 0:03:00.8]} 8. Bd3 {[%clk 0:02:57.8]}
8... Nbd7 {[%clk 0:03:00.9]} 9. Nf3 {[%clk 0:02:57.3]} 9... Re8 {[%clk
0:03:01.5]} 10. O-O {[%clk 0:02:57.1]} 10... Nf8 {[%clk 0:03:01.9]} 11. Rab1
{[%clk 0:02:56.3]} 11... a5 {[%clk 0:03:01]} 12. a3 {[%clk 0:02:55.9]} 12... Ng6
{[%clk 0:02:58.9]} 13. b4 {[%clk 0:02:52.2]} 13... Bd6 {[%clk 0:02:59.3]} 14. h3
{[%clk 0:02:44.3]} 14... h6 {[%clk 0:02:54.8]} 15. Bxf6 {[%clk 0:02:30.8]} 15...
Qxf6 {[%clk 0:02:54.2]} 16. Qd1 {[%clk 0:02:27.9]} 16... axb4 {[%clk 0:02:25.9]}
17. axb4 {[%clk 0:02:25.3]} 17... Ra3 {[%clk 0:02:25.9]} 18. Qc1 {[%clk
0:01:33.6]} 18... Rxc3 {[%clk 0:02:17.2]} 19. Qxc3 {[%clk 0:01:32.5]} 19... Bxh3
{[%clk 0:02:17.9]} 20. b5 {[%clk 0:01:24.3]} 20... Bg4 {[%clk 0:01:39.1]} 21.
Nh2 {[%clk 0:00:50.6]} 21... Bh5 {[%clk 0:01:15.7]} 22. bxc6 {[%clk 0:00:38.6]}
22... bxc6 {[%clk 0:01:09.6]} 23. g3 {[%clk 0:00:37.8]} 23... Qg5 {[%clk
0:00:54.3]} 24. Qxc6 {[%clk 0:00:29.3]} 24... Re6 {[%clk 0:00:54]} 25. Qc8+
{[%clk 0:00:24.9]} 25... Kh7 {[%clk 0:00:52.1]} 26. Kh1 {[%clk 0:00:20.4]} 26...
Qf6 {[%clk 0:00:11.4]} 27. Qd7 {[%clk 0:00:15.1]} 27... Bf3+ {[%clk 0:00:10.1]}
28. Kg1 {[%clk 0:00:12.7]} 28... Kg8 {[%clk 0:00:04.7]} 29. Rb7 {[%clk
0:00:11.5]} 29... Nf8 {[%clk 0:00:03.2]} 30. Qb5 {[%clk 0:00:09.9]} 1-0

[Event "Early-Titled-Tuesday-Blitz-October-17-2023"]
[Site "Chess.com"]
[Date "2023.10.17"]
[Round "6"]
[White "topin8"]
[Black "MdChess1734"]
[Result "1-0"]
[WhiteElo "2498"]
[BlackElo "2414"]
[TimeControl "180+1"]
[EndTime "9:10:51 PDT"]
[Termination "topin8 won on time"]

1. e4 {[%clk 0:02:59.8]} 1... c6 {[%clk 0:02:54.6]} 2. Nf3 {[%clk 0:02:58.3]}
2... d5 {[%clk 0:02:53.9]} 3. Nc3 {[%clk 0:02:59.2]} 3... Bg4 {[%clk 0:02:54]}
4. h3 {[%clk 0:02:58.5]} 4... Bxf3 {[%clk 0:02:54.5]} 5. Qxf3 {[%clk 0:02:59.4]}
5... e6 {[%clk 0:02:55.1]} 6. d3 {[%clk 0:02:58.2]} 6... Nd7 {[%clk 0:02:55]} 7.
Bd2 {[%clk 0:02:55.6]} 7... Bc5 {[%clk 0:02:50.8]} 8. Be2 {[%clk 0:02:46.5]}
8... Ne7 {[%clk 0:02:45.4]} 9. Qg3 {[%clk 0:02:43.9]} 9... O-O {[%clk
0:02:34.9]} 10. f4 {[%clk 0:02:41.4]} 10... f5 {[%clk 0:02:26.3]} 11. h4 {[%clk
0:02:27.1]} 11... dxe4 {[%clk 0:01:29.5]} 12. dxe4 {[%clk 0:02:28]} 12... Nf6
{[%clk 0:01:29.9]} 13. e5 {[%clk 0:02:10]} 13... Nfd5 {[%clk 0:01:18.8]} 14. Na4
{[%clk 0:01:26.1]} 14... Bd4 {[%clk 0:00:55]} 15. c3 {[%clk 0:01:20.6]} 15...
Bb6 {[%clk 0:00:50]} 16. c4 {[%clk 0:01:12.4]} 16... Nc7 {[%clk 0:00:16.8]} 17.
c5 {[%clk 0:00:55.7]} 17... Qd4 {[%clk 0:00:13.6]} 18. cxb6 {[%clk 0:00:55.5]}
18... axb6 {[%clk 0:00:10.9]} 19. Nc3 {[%clk 0:00:53]} 19... b5 {[%clk
0:00:11.3]} 20. Qf2 {[%clk 0:00:21.9]} 20... Qd7 {[%clk 0:00:05]} 21. b3 {[%clk
0:00:14]} 21... b4 {[%clk 0:00:02.3]} 22. Na4 {[%clk 0:00:13.7]} 22... Ncd5
{[%clk 0:00:02.8]} 23. Nc5 {[%clk 0:00:07.6]} 23... Qc8 {[%clk 0:00:02.7]} 24.
Nd3 {[%clk 0:00:03.7]} 1-0

[Event "Early-Titled-Tuesday-Blitz-October-17-2023"]
[Site "Chess.com"]
[Date "2023.10.17"]
[Round "6"]
[White "ozates"]
[Black "bazar-wokzal"]
[Result "0-1"]
[WhiteElo "2731"]
[BlackElo "2581"]
[TimeControl "180+1"]
[EndTime "9:10:54 PDT"]
[Termination "bazar-wokzal won by checkmate"]

1. e4 {[%clk 0:03:00.9]} 1... Nc6 {[%clk 0:02:59.6]} 2. Nf3 {[%clk 0:03:00.6]}
2... d5 {[%clk 0:02:59.4]} 3. exd5 {[%clk 0:03:00.6]} 3... Qxd5 {[%clk
0:02:59.6]} 4. Nc3 {[%clk 0:03:01.5]} 4... Qa5 {[%clk 0:02:59.5]} 5. d4 {[%clk
0:02:58.6]} 5... Bg4 {[%clk 0:02:58.9]} 6. h3 {[%clk 0:02:55.7]} 6... Bxf3
{[%clk 0:02:58.6]} 7. Qxf3 {[%clk 0:02:56.3]} 7... O-O-O {[%clk 0:02:58.6]} 8.
d5 {[%clk 0:02:52.1]} 8... Nb4 {[%clk 0:02:57.4]} 9. Bd3 {[%clk 0:02:49.6]} 9...
Nf6 {[%clk 0:02:56.1]} 10. Bf5+ {[%clk 0:02:47.4]} 10... Kb8 {[%clk 0:02:55.3]}
11. O-O {[%clk 0:02:45.1]} 11... Nbxd5 {[%clk 0:02:54]} 12. Ne4 {[%clk
0:02:28.6]} 12... e6 {[%clk 0:02:50.8]} 13. Nxf6 {[%clk 0:02:25.9]} 13... gxf6
{[%clk 0:02:42.8]} 14. Bd3 {[%clk 0:02:25.1]} 14... Be7 {[%clk 0:02:41]} 15. a3
{[%clk 0:02:24.3]} 15... f5 {[%clk 0:02:36.9]} 16. Rb1 {[%clk 0:02:24.2]} 16...
Bf6 {[%clk 0:02:33.8]} 17. c4 {[%clk 0:02:21]} 17... Ne7 {[%clk 0:02:31.9]} 18.
b4 {[%clk 0:02:20.6]} 18... Qa4 {[%clk 0:02:29.7]} 19. Qe2 {[%clk 0:02:02.8]}
19... Rhg8 {[%clk 0:02:20.1]} 20. b5 {[%clk 0:02:01.5]} 20... Ng6 {[%clk
0:02:15.7]} 21. Rb4 {[%clk 0:01:55.2]} 21... Qa5 {[%clk 0:02:15.2]} 22. c5
{[%clk 0:01:50.4]} 22... Rd4 {[%clk 0:02:08]} 23. Bb2 {[%clk 0:01:47.7]} 23...
Nf4 {[%clk 0:01:52.5]} 24. Qf3 {[%clk 0:01:46.1]} 24... Rxd3 {[%clk 0:01:39]}
25. Qxf4 {[%clk 0:01:44.8]} 25... Bxb2 {[%clk 0:01:38.6]} 26. b6 {[%clk
0:01:43.1]} 26... axb6 {[%clk 0:01:34.2]} 27. Rxb2 {[%clk 0:01:38.2]} 27... Qxc5
{[%clk 0:01:30.3]} 28. Rc1 {[%clk 0:01:37.6]} 28... Rc3 {[%clk 0:01:30]} 29. Rd1
{[%clk 0:01:35]} 29... Rxh3 {[%clk 0:01:27.2]} 30. Rbd2 {[%clk 0:01:34.1]} 30...
Rc3 {[%clk 0:01:23.8]} 31. Rd8+ {[%clk 0:01:22.8]} 31... Rxd8 {[%clk 0:01:23]}
32. Rxd8+ {[%clk 0:01:23.7]} 32... Ka7 {[%clk 0:01:23.2]} 33. Qa4+ {[%clk
0:01:24.6]} 33... Qa5 {[%clk 0:01:21.7]} 34. Qe8 {[%clk 0:01:25.3]} 34... Rc1+
{[%clk 0:01:20.2]} 35. Kh2 {[%clk 0:01:25.5]} 35... Qe5+ {[%clk 0:01:16]} 36. g3
{[%clk 0:01:25.8]} 36... b5 {[%clk 0:01:14.3]} 37. Ra8+ {[%clk 0:01:23.1]} 37...
Kb6 {[%clk 0:01:14.6]} 38. a4 {[%clk 0:01:16.1]} 38... Rc2 {[%clk 0:01:00.9]}
39. a5+ {[%clk 0:00:40.3]} 39... Kc5 {[%clk 0:01:00.5]} 40. Rd8 {[%clk
0:00:32.3]} 40... Rxf2+ {[%clk 0:00:57.2]} 41. Kh3 {[%clk 0:00:32]} 41... Qe4
{[%clk 0:00:33.7]} 42. Qe7+ {[%clk 0:00:29.3]} 42... Kc4 {[%clk 0:00:34.2]} 43.
Qxc7+ {[%clk 0:00:25.9]} 43... Kb3 {[%clk 0:00:34.4]} 44. Rg8 {[%clk 0:00:11.7]}
44... Qh1# {[%clk 0:00:33.3]} 0-1